Workbook

Sheet Total Quantities
A2: CITY OF BEAUFORT
A3: CTC RESURFACING - Phase I
A7: ITEM # | B7: DESCRIPTION | D7: UNIT | E7: QUANTITY | F7: UNIT PRICE | G7: TOTAL PRICE
A9: 1 | B9: Mobilization | C9: =A9 -> 1 | D9: LS | E9: =SUM('Charles St Ext'!E11,'Craven St'!E12,'Jericho Woods SD'!E11,'Stone Marten'!E11,'Schein Loop'!E12) -> 1.00 | G9: ='Charles St Ext'!G11+'Craven St'!G12+'Jericho Woods SD'!G11+'Stone Marten'!G11+'Schein Loop'!G12 -> $0.00 | H9: 20%
A10: 2 | B10: Bonds & Insurance | C10: =A10 -> 2 | D10: LS | E10: =SUM('Charles St Ext'!E12,'Craven St'!E13,'Jericho Woods SD'!E12,'Stone Marten'!E12,'Schein Loop'!E13) -> 1.00 | G10: =E10*F10 -> $0.00 | H10: 2%
A11: 3 | B11: Construction Stakes, Lines, & Grades | C11: 3 | D11: LS | E11: =SUM('Charles St Ext'!E13,'Craven St'!E14,'Jericho Woods SD'!E13,'Stone Marten'!E13,'Schein Loop'!E14) -> 1.00 | G11: $0.00 | H11: 10%
A12: 4 | B12: Traffic Control | C12: 4 | D12: LS | E12: =SUM('Charles St Ext'!E14,'Craven St'!E15,'Jericho Woods SD'!E14,'Stone Marten'!E14,'Schein Loop'!E15) -> 1.00 | G12: $0.00 | H12: 15%
A13: 5 | B13: Borrow Excavation | C13: =VLOOKUP(B13,'Total Quantities'!B8:C37,2,FALSE) -> 5 | D13: CY | E13: =SUM('Charles St Ext'!E37,'Craven St'!E40,'Jericho Woods SD'!E15,'Jericho Woods SD'!E37,'Stone Marten'!E15,'Stone Marten'!E33,'Schein Loop'!E16) -> 580 | G13: $0.00
A14: 6 | B14: Maintenance Stone | C14: =VLOOKUP(B14,'Total Quantities'!B9:C38,2,FALSE) -> 5 | D14: TON | E14: =SUM('Schein Loop'!E17) -> 20 | G14: $0.00
A15: 7 | B15: Removal & Disposal of Existing Curb | C15: =A15 -> 7 | D15: SY | E15: =+'Craven St'!E16 -> 70 | G15: $0.00
A16: 8 | B16: Concrete Curb and Gutter (3'-0") Sloping Face | D16: LF | E16: =+SUM('Craven St'!E17) -> 200 | G16: $0.00
A17: 9 | B17: Mill Existing Asphalt Pavement (variable depth) | C17: =VLOOKUP(B17,'Total Quantities'!B12:C40,2,FALSE) -> 11 | D17: SY | E17: =+SUM('Charles St Ext'!E15,'Craven St'!E18,'Jericho Woods SD'!E16,'Schein Loop'!E18) -> 2435 | G17: $0.00
A18: 10 | B18: Full Depth HMA Patching 6" Uniform | C18: =VLOOKUP(B18,'Total Quantities'!B13:C41,2,FALSE) -> 12 | D18: SY | E18: =SUM('Charles St Ext'!E16,'Charles St Ext'!E38,'Craven St'!E19,'Jericho Woods SD'!E17,'Jericho Woods SD'!E38,'Stone Marten'!E16,'Stone Marten'!E34,'Schein Loop'!E19) -> 1150 | G18: $0.00
A19: 11 | B19: Liquid Asphalt Binder PG64-22 | C19: =VLOOKUP(B19,'Total Quantities'!B15:C42,2,FALSE) -> 13 | D19: TON | E19: =+SUM('Charles St Ext'!E17,'Charles St Ext'!E39,'Craven St'!E20,'Craven St'!E41,'Jericho Woods SD'!E18,'Jericho Woods SD'!E39,'Stone Marten'!E17,'Stone Marten'!E35,'Schein Loop'!E20) -> 131.50 | G19: $0.00
A20: 12 | B20: H/M Asph. Surf. Cr. Type D (150 lbs/sy) | C20: =VLOOKUP(B20,'Total Quantities'!B17:C44,2,FALSE) -> 17 | D20: TON | E20: =+SUM('Charles St Ext'!E18,'Charles St Ext'!E40,'Craven St'!E21,'Craven St'!E42,'Jericho Woods SD'!E19,'Jericho Woods SD'!E40,'Stone Marten'!E18,'Stone Marten'!E36) -> 1110.00 | G20: $0.00
A21: 13 | B21: H/M Asph. Surf. Cr. Type B (200 lbs/sy) | D21: TON | E21: ='Schein Loop'!E21 -> 890.00 | G21: $0.00
A22: 14 | B22: H/M Asph. Surf. Cr. Type E (Varies) | D22: TON | E22: ='Schein Loop'!E22 -> 200.00 | G22: $0.00
A23: 15 | B23: Permanent Construction Signs (Ground Mounted) | D23: SF | E23: ='Schein Loop'!E23 -> 152.00 | G23: $0.00
A24: 16 | B24: 8" White Solid Lines(Crosswalk) Fast Dry Paint | D24: LF | E24: =+SUM('Craven St'!E22) -> 50 | G24: $0.00
A25: 17 | B25: 4" White Solid Lines (Pavement Edge Lines) Fast Dry Paint | C25: =VLOOKUP(B25,'Total Quantities'!B19:C47,2,FALSE) -> 21 | D25: LF | E25: =+SUM('Charles St Ext'!E19,'Jericho Woods SD'!E20,'Schein Loop'!E24) -> 6480 | G25: $0.00
A26: 18 | B26: 24" White Solid Lines (Stop) Fast Dry Paint | C26: =VLOOKUP(B26,'Total Quantities'!B20:C48,2,FALSE) -> 24 | D26: LF | E26: =+SUM('Charles St Ext'!E20,'Charles St Ext'!E41,'Craven St'!E23,'Craven St'!E43,'Jericho Woods SD'!E21,'Jericho Woods SD'!E41,'Stone Marten'!E19,'Stone Marten'!E37,'Schein Loop'!E25) -> 273 | G26: $0.00
A27: 19 | B27: 4" Yellow Solid Line (No Passing Zone) Fast Dry Paint | C27: =VLOOKUP(B27,'Total Quantities'!B20:C49,2,FALSE) -> 25 | D27: LF | E27: =+SUM('Charles St Ext'!E21,'Schein Loop'!E26) -> 6976 | G27: $0.00
A28: 20 | B28: Restripe Yellow Curb - Fast Dry Paint | D28: LF | E28: =+SUM('Craven St'!E24) -> 800 | G28: $0.00
A29: 21 | B29: 4" White Solid Lines (Pavement Edge Lines) Thermoplastic-90 mil | C29: =VLOOKUP(B29,'Total Quantities'!B20:C51,2,FALSE) -> 27 | D29: LF | E29: =+SUM('Charles St Ext'!E22,'Jericho Woods SD'!E22,'Schein Loop'!E27) -> 6480 | G29: $0.00
A30: 22 | B30: 24" White Solid Lines (Stop/Diag Lines) Thermoplastic-125 mil | C30: =VLOOKUP(B30,'Total Quantities'!B25:C52,2,FALSE) -> 31 | D30: LF | E30: =+SUM('Charles St Ext'!E23,'Charles St Ext'!E42,'Craven St'!E25,'Craven St'!E44,'Jericho Woods SD'!E23,'Jericho Woods SD'!E42,'Stone Marten'!E20,'Stone Marten'!E38,'Schein Loop'!E28) -> 273 | G30: $0.00
A31: 23 | B31: 4" Yellow Solid Line (No Passing Zone) Thermoplastic-90 mil | C31: =VLOOKUP(B31,'Total Quantities'!B26:C53,2,FALSE) -> 32 | D31: LF | E31: =+SUM('Charles St Ext'!E24,'Craven St'!E26,'Schein Loop'!E29) -> 7276 | G31: $0.00
A32: 24 | B32: 8" White Solid Lines Thermoplastic - 125 MIL. | D32: LF | E32: =+SUM('Craven St'!E27) -> 50 | G32: $0.00
A33: 25 | B33: Permanent Yellow Pavement Markers Bi-Dir.-4"x4" | C33: =VLOOKUP(B33,'Total Quantities'!B30:C56,2,FALSE) -> 41 | D33: EA | E33: =+SUM('Charles St Ext'!E25,'Craven St'!E28,'Schein Loop'!E30) -> 49 | G33: $0.00
A34: 26 | B34: Permanent Clear Pavement Markers Mono.-4"x4" | C34: =VLOOKUP(B34,'Total Quantities'!B34:C59,2,FALSE) ->  | D34: EA | E34: =+SUM('Jericho Woods SD'!E24) -> 14 | G34: $0.00
A35: 27 | B35: 36" RCP (Remove & Replace) | D35: LF | E35: ='Schein Loop'!E31 -> 48 | G35: $0.00
A36: 28 | B36: 42" RCP (Remove & Replace) | D36: LF | E36: ='Schein Loop'!E32 -> 64 | G36: $0.00
A37: 29 | B37: Permanent Vegetation | C37: =VLOOKUP(B37,'Total Quantities'!B31:C57,2,FALSE) -> 42 | D37: MSY | E37: =+SUM('Charles St Ext'!E43,'Craven St'!E45,'Jericho Woods SD'!E25,'Jericho Woods SD'!E43,'Stone Marten'!E21,'Stone Marten'!E39,'Schein Loop'!E33) -> 7.03 | G37: =E37*F37 -> $0.00
C38: =A38 -> 0 | D38: TOTAL | F38: =SUM(G9:G37) -> $0.00

Sheet Charles St Ext
A1: Charles Street
A3: Section 1 of 2
A4: Start: | B4: Charles Street (@ US-21)
A5: Stop: | B5: Charles Street (@ Calhoun St)- Tie down at Calhoun, don't pull across
A6: Road Length: | B6: .06 mi
A7: Original Width: 31 ft Widen Left: 0 ft Widen Right: 0 ft Final Width: 31 ft
A9: ITEM # | B9: DESCRIPTION | D9: UNIT | E9: QUANTITY | F9: UNIT PRICE | G9: TOTAL PRICE | I9: Proposed Width [ft] | J9: 28
I10: Pavement Area [sy] | J10: =(#REF!*J9)/9 -> 
A11: 1 | B11: Mobilization | C11: =A11 -> 1 | D11: LS | E11: 0.20 | F11: ='Total Quantities'!F9 -> $0.00 | G11: =E11*F11 -> $0.00
A12: 2 | B12: Bonds & Insurance | C12: =A12 -> 2 | D12: LS | E12: 0.20 | F12: ='Total Quantities'!F10 -> $0.00 | G12: =E12*F12 -> $0.00
A13: 3 | B13: Construction Stakes, Lines, & Grades | C13: 3 | D13: LS | E13: 0.20 | F13: ='Total Quantities'!F11 -> $0.00 | G13: $0.00
A14: 4 | B14: Traffic Control | C14: 4 | D14: LS | E14: 0.20 | F14: ='Total Quantities'!F12 -> $0.00 | G14: $0.00
A15: 9 | B15: Mill Existing Asphalt Pavement (variable depth) | C15: =VLOOKUP(B15,'Total Quantities'!B16:C43,2,FALSE) -> 11 | D15: SY | E15: 210 | F15: ='Total Quantities'!F17 -> $0.00 | G15: =F15*E15 -> $0.00
A16: 10 | B16: Full Depth HMA Patching 6" Uniform | C16: =VLOOKUP(B16,'Total Quantities'!B17:C44,2,FALSE) -> 12 | D16: SY | E16: 15 | F16: ='Total Quantities'!F18 -> $0.00 | G16: $0.00
A17: 11 | B17: Liquid Asphalt Binder PG64-22 | C17: =VLOOKUP(B17,'Total Quantities'!B17:C45,2,FALSE) -> 13 | D17: TON | E17: 5.000 | F17: ='Total Quantities'!F19 -> $0.00 | G17: $0.00
A18: 12 | B18: H/M Asph. Surf. Cr. Type D (150 lbs/sy) | C18: =VLOOKUP(B18,'Total Quantities'!B19:C47,2,FALSE) ->  | D18: TON | E18: 80.00 | F18: ='Total Quantities'!F20 -> $0.00 | G18: =F18*E18 -> $0.00 | H18: Rate | I18: 80
A19: 17 | B19: 4" White Solid Lines (Pavement Edge Lines) Fast Dry Paint | C19: =VLOOKUP(B19,'Total Quantities'!B20:C50,2,FALSE) -> 21 | D19: LF | E19: 30 | F19: ='Total Quantities'!F25 -> $0.00 | G19: $0.00
A20: 18 | B20: 24" White Solid Lines (Stop) Fast Dry Paint | C20: =VLOOKUP(B20,'Total Quantities'!B25:C51,2,FALSE) -> 24 | D20: LF | E20: 62 | F20: ='Total Quantities'!F26 -> $0.00 | G20: $0.00
A21: 19 | B21: 4" Yellow Solid Line (No Passing Zone) Fast Dry Paint | C21: =VLOOKUP(B21,'Total Quantities'!B25:C52,2,FALSE) -> 25 | D21: LF | E21: 626 | F21: ='Total Quantities'!F27 -> $0.00 | G21: $0.00
A22: 21 | B22: 4" White Solid Lines (Pavement Edge Lines) Thermoplastic-90 mil | C22: =VLOOKUP(B22,'Total Quantities'!B26:C54,2,FALSE) -> 27 | D22: LF | E22: 30 | F22: ='Total Quantities'!F29 -> $0.00 | G22: $0.00
A23: 22 | B23: 24" White Solid Lines (Stop/Diag Lines) Thermoplastic-125 mil | C23: =VLOOKUP(B23,'Total Quantities'!B27:C55,2,FALSE) -> 31 | D23: LF | E23: 62 | F23: ='Total Quantities'!F30 -> $0.00 | G23: $0.00
A24: 23 | B24: 4" Yellow Solid Line (No Passing Zone) Thermoplastic-90 mil | C24: =VLOOKUP(B24,'Total Quantities'!B30:C56,2,FALSE) -> 32 | D24: LF | E24: 626 | F24: ='Total Quantities'!F31 -> $0.00 | G24: $0.00
A25: 25 | B25: Permanent Yellow Pavement Markers Bi-Dir.-4"x4" | C25: =VLOOKUP(B25,'Total Quantities'!B34:C59,2,FALSE) ->  | D25: EA | E25: 4 | F25: ='Total Quantities'!F33 -> $0.00 | G25: $0.00
F26: SUB-TOTAL = | G26: =SUM(G11:G25) -> $0.00
A29: Section 2 of 2
A30: Start: | B30: Charles Street (@ Calhoun St)
A31: Stop: | B31: Charles Street (end of road)
A32: Road Length: | B32: .09 mi
A33: Original Width: 18 ft Widen Left: 0 ft Widen Right: 0 ft Final Width: 18 ft
A35: ITEM # | B35: DESCRIPTION | D35: UNIT | E35: QUANTITY | F35: UNIT PRICE | G35: TOTAL PRICE | I35: Proposed Width [ft] | J35: 28
I36: Pavement Area [sy] | J36: =(#REF!*J35)/9 -> 
A37: 5 | B37: Borrow Excavation | C37: =VLOOKUP(B37,'Total Quantities'!B44:C67,2,FALSE) ->  | D37: CY | E37: 30 | F37: ='Total Quantities'!F13 -> $0.00 | G37: =F37*E37 -> $0.00
A38: 10 | B38: Full Depth HMA Patching 6" Uniform | C38: =VLOOKUP(B38,'Total Quantities'!B49:C75,2,FALSE) ->  | D38: SY | E38: 135 | F38: ='Total Quantities'!F18 -> $0.00 | G38: $0.00
A39: 11 | B39: Liquid Asphalt Binder PG64-22 | C39: =VLOOKUP(B39,'Total Quantities'!B49:C76,2,FALSE) ->  | D39: TON | E39: 5.00 | F39: ='Total Quantities'!F19 -> $0.00 | G39: $0.00
A40: 12 | B40: H/M Asph. Surf. Cr. Type D (150 lbs/sy) | C40: =VLOOKUP(B40,'Total Quantities'!B51:C78,2,FALSE) ->  | D40: TON | E40: 75.00 | F40: ='Total Quantities'!F20 -> $0.00 | G40: =F40*E40 -> $0.00 | H40: Rate | I40: 80
A41: 18 | B41: 24" White Solid Lines (Stop) Fast Dry Paint | C41: =VLOOKUP(B41,'Total Quantities'!B54:C82,2,FALSE) ->  | D41: LF | E41: 20 | F41: ='Total Quantities'!F26 -> $0.00 | G41: $0.00
A42: 22 | B42: 24" White Solid Lines (Stop/Diag Lines) Thermoplastic-125 mil | C42: =VLOOKUP(B42,'Total Quantities'!B56:C86,2,FALSE) ->  | D42: LF | E42: 20 | F42: ='Total Quantities'!F30 -> $0.00 | G42: $0.00
A43: 29 | B43: Permanent Vegetation | C43: =VLOOKUP(B43,'Total Quantities'!B65:C92,2,FALSE) ->  | D43: MSY | E43: 0.35 | F43: ='Total Quantities'!F37 -> $0.00 | G43: $0.00
F44: SUB-TOTAL = | G44: =SUM(G37:G42) -> $0.00
F47: ROAD TOTAL = | G47: =+SUM(G44,G26) -> $0.00

Sheet Craven St
A1: Craven Street | I1: Road Dimensions
A3: Section 1 of 2
A4: Start: | B4: Craven Street (@ Carteret)
A5: Stop: | B5: Craven Street (@ East Street)
A6: State Road # | B6: S-7-62
A7: Road Length: | B7: .10 mi.
A8: Original Width: 25 ft Widen Left: 0 ft Widen Right: 0 ft Final Width: 25 ft
I9: Total Length [ft] | J9: 6,750 | L9: =J9/5280 -> 1.28 | M9: [mi]
A10: ITEM # | B10: DESCRIPTION | D10: UNIT | E10: QUANTITY | F10: UNIT PRICE | G10: TOTAL PRICE | I10: Pavement Area [sy] | J10: =(J9*#REF!)/9 -> 
A12: 1 | B12: Mobilization | C12: =A12 -> 1 | D12: LS | E12: 0.20 | F12: ='Total Quantities'!F9 -> $0.00 | G12: =E12*F12 -> $0.00
A13: 2 | B13: Bonds & Insurance | C13: =A13 -> 2 | D13: LS | E13: 0.20 | F13: ='Total Quantities'!F10 -> $0.00 | G13: =E13*F13 -> $0.00
A14: 3 | B14: Construction Stakes, Lines, & Grades | C14: 3 | D14: LS | E14: 0.20 | F14: ='Total Quantities'!F11 -> $0.00 | G14: $0.00
A15: 4 | B15: Traffic Control | C15: 4 | D15: LS | E15: 0.20 | F15: ='Total Quantities'!F12 -> $0.00 | G15: $0.00
A16: 7 | B16: Removal & Disposal of Existing Curb | C16: 7 | D16: SY | E16: 70 | F16: ='Total Quantities'!F15 -> $0.00 | G16: =E16*F16 -> $0.00
A17: 8 | B17: Concrete Curb and Gutter (3'-0") Sloping Face | D17: LF | E17: 200 | F17: ='Total Quantities'!F16 -> $0.00 | G17: =E17*F17 -> $0.00
A18: 9 | B18: Mill Existing Asphalt Pavement (variable depth) | C18: =VLOOKUP(B18,'Total Quantities'!B16:C43,2,FALSE) -> 11 | D18: SY | E18: 1700 | F18: ='Total Quantities'!F17 -> $0.00 | G18: =F18*E18 -> $0.00
A19: 10 | B19: Full Depth HMA Patching 6" Uniform | C19: =VLOOKUP(B19,'Total Quantities'!B17:C44,2,FALSE) -> 12 | D19: SY | E19: 30 | F19: ='Total Quantities'!F18 -> $0.00 | G19: $0.00
A20: 11 | B20: Liquid Asphalt Binder PG64-22 | C20: =VLOOKUP(B20,'Total Quantities'!B17:C45,2,FALSE) -> 13 | D20: TON | E20: 7.00 | F20: ='Total Quantities'!F19 -> $0.00 | G20: $0.00 | H20: Rate | I20: 80
A21: 12 | B21: H/M Asph. Surf. Cr. Type D (150 lbs/sy) | C21: =VLOOKUP(B21,'Total Quantities'!B19:C47,2,FALSE) ->  | D21: TON | E21: 115.00 | F21: ='Total Quantities'!F20 -> $0.00 | G21: =F21*E21 -> $0.00
A22: 16 | B22: 8" White Solid Lines(Crosswalk) Fast Dry Paint | D22: LF | E22: 50 | F22: ='Total Quantities'!F24 -> $0.00 | G22: =F22*E22 -> $0.00
A23: 18 | B23: 24" White Solid Lines (Stop) Fast Dry Paint | C23: =VLOOKUP(B23,'Total Quantities'!B25:C51,2,FALSE) -> 24 | D23: LF | E23: 50 | F23: ='Total Quantities'!F26 -> $0.00 | G23: $0.00
A24: 20 | B24: Restripe Yellow Curb - Fast Dry Paint | D24: LF | E24: 800 | F24: ='Total Quantities'!F28 -> $0.00 | G24: $0.00
A25: 22 | B25: 24" White Solid Lines (Stop/Diag Lines) Thermoplastic-125 mil | C25: =VLOOKUP(B25,'Total Quantities'!B27:C55,2,FALSE) -> 31 | D25: LF | E25: 50 | F25: ='Total Quantities'!F30 -> $0.00 | G25: $0.00
A26: 23 | B26: 4" Yellow Solid Line (No Passing Zone) Thermoplastic-90 mil | C26: =VLOOKUP(B26,'Total Quantities'!B30:C56,2,FALSE) -> 32 | D26: LF | E26: 800 | F26: ='Total Quantities'!F31 -> $0.00 | G26: $0.00
A27: 24 | B27: 8" White Solid Lines Thermoplastic - 125 MIL. | D27: LF | E27: 50 | F27: ='Total Quantities'!F32 -> $0.00 | G27: $0.00
A28: 25 | B28: Permanent Yellow Pavement Markers Bi-Dir.-4"x4" | C28: =VLOOKUP(B28,'Total Quantities'!B34:C59,2,FALSE) ->  | D28: EA | E28: 7 | F28: ='Total Quantities'!F33 -> $0.00 | G28: $0.00
F29: SUB-TOTAL | G29: =SUM(G12:G28) -> $0.00
A32: Section 2 of 2
A33: Start: | B33: Craven Street (@ East St)
A34: Stop: | B34: Craven Street (end of road)
A35: Road Length: | B35: .018 mi.
A36: Original Width: 20 ft Widen Left: 0 ft Widen Right: 0 ft Final Width: 20 ft
A38: ITEM # | B38: DESCRIPTION | D38: UNIT | E38: QUANTITY | F38: UNIT PRICE | G38: TOTAL PRICE
A40: 5 | B40: Borrow Excavation | C40: =VLOOKUP(B40,'Total Quantities'!B45:C68,2,FALSE) ->  | D40: CY | E40: 10 | F40: ='Total Quantities'!F13 -> $0.00 | G40: =F40*E40 -> $0.00
A41: 11 | B41: Liquid Asphalt Binder PG64-22 | C41: =VLOOKUP(B41,'Total Quantities'!B50:C77,2,FALSE) ->  | D41: TON | E41: 1.50 | F41: ='Total Quantities'!F19 -> $0.00 | G41: $0.00
A42: 12 | B42: H/M Asph. Surf. Cr. Type D (150 lbs/sy) | C42: =VLOOKUP(B42,'Total Quantities'!B52:C79,2,FALSE) ->  | D42: TON | E42: 20.00 | F42: ='Total Quantities'!F20 -> $0.00 | G42: =F42*E42 -> $0.00
A43: 18 | B43: 24" White Solid Lines (Stop) Fast Dry Paint | C43: =VLOOKUP(B43,'Total Quantities'!B51:C79,2,FALSE) ->  | D43: LF | E43: 12 | F43: ='Total Quantities'!F26 -> $0.00 | G43: =F43*E43 -> $0.00
A44: 22 | B44: 24" White Solid Lines (Stop/Diag Lines) Thermoplastic-125 mil | C44: =VLOOKUP(B44,'Total Quantities'!B53:C83,2,FALSE) ->  | D44: LF | E44: 12 | F44: ='Total Quantities'!F30 -> $0.00 | G44: $0.00
A45: 29 | B45: Permanent Vegetation | C45: =VLOOKUP(B45,'Total Quantities'!B65:C92,2,FALSE) ->  | D45: MSY | E45: 0.08 | F45: ='Total Quantities'!F37 -> $0.00 | G45: $0.00
F46: SUB-TOTAL | G46: =SUM(G40:G45) -> $0.00
F49: ROAD TOTAL = | G49: =+SUM(G46,G29) -> $0.00

Sheet Jericho Woods SD
A1: Jericho Woods Subdivision | I1: Road Dimensions
A3: Jericho Woods Road
A4: Start: | B4: Jericho Woods (Entrance @ Battery Creek Road)
A5: Stop: | B5: Jericho Woods (Exit @ Battery Creek Road)
A6: Road Length: | B6: 0.31 mi.
A7: Original Width: 22 ft Widen Left: 0 ft Widen Right: 0 ft Final Width: 22 ft
A9: ITEM # | B9: DESCRIPTION | D9: UNIT | E9: QUANTITY | F9: UNIT PRICE | G9: TOTAL PRICE | I9: Proposed Width [ft] | J9: 28
I10: Pavement Area [sy] | J10: =(#REF!*J9)/9 -> 
A11: 1 | B11: Mobilization | C11: =A11 -> 1 | D11: LS | E11: 0.20 | F11: ='Total Quantities'!F9 -> $0.00 | G11: =E11*F11 -> $0.00
A12: 2 | B12: Bonds & Insurance | C12: =A12 -> 2 | D12: LS | E12: 0.20 | F12: ='Total Quantities'!F10 -> $0.00 | G12: =E12*F12 -> $0.00
A13: 3 | B13: Construction Stakes, Lines, & Grades | C13: 3 | D13: LS | E13: 0.20 | F13: ='Total Quantities'!F11 -> $0.00 | G13: $0.00
A14: 4 | B14: Traffic Control | C14: 4 | D14: LS | E14: 0.20 | F14: ='Total Quantities'!F12 -> $0.00 | G14: $0.00
A15: 5 | B15: Borrow Excavation | C15: =VLOOKUP(B15,'Total Quantities'!B11:C39,2,FALSE) -> 5 | D15: CY | E15: 100 | F15: ='Total Quantities'!F13 -> $0.00 | G15: =F15*E15 -> $0.00
A16: 9 | B16: Mill Existing Asphalt Pavement (variable depth) | C16: =VLOOKUP(B16,'Total Quantities'!B16:C43,2,FALSE) -> 11 | D16: SY | E16: 375 | F16: ='Total Quantities'!F17 -> $0.00 | G16: =F16*E16 -> $0.00
A17: 10 | B17: Full Depth HMA Patching 6" Uniform | C17: =VLOOKUP(B17,'Total Quantities'!B17:C44,2,FALSE) -> 12 | D17: SY | E17: 15 | F17: ='Total Quantities'!F18 -> $0.00 | G17: =F17*E17 -> $0.00
A18: 11 | B18: Liquid Asphalt Binder PG64-22 | C18: =VLOOKUP(B18,'Total Quantities'!B17:C45,2,FALSE) -> 13 | D18: TON | E18: 21.00 | F18: ='Total Quantities'!F19 -> $0.00 | G18: $0.00 | H18: Rate | I18: 450
A19: 12 | B19: H/M Asph. Surf. Cr. Type D (150 lbs/sy) | C19: =VLOOKUP(B19,'Total Quantities'!B19:C47,2,FALSE) ->  | D19: TON | E19: 330.00 | F19: ='Total Quantities'!F20 -> $0.00 | G19: =F19*E19 -> $0.00
A20: 17 | B20: 4" White Solid Lines (Pavement Edge Lines) Fast Dry Paint | C20: =VLOOKUP(B20,'Total Quantities'!B20:C50,2,FALSE) -> 21 | D20: LF | E20: 100 | F20: ='Total Quantities'!F25 -> $0.00 | G20: $0.00
A21: 18 | B21: 24" White Solid Lines (Stop) Fast Dry Paint | C21: =VLOOKUP(B21,'Total Quantities'!B25:C51,2,FALSE) -> 24 | D21: LF | E21: 64 | F21: ='Total Quantities'!F26 -> $0.00 | G21: $0.00
A22: 21 | B22: 4" White Solid Lines (Pavement Edge Lines) Thermoplastic-90 mil | C22: =VLOOKUP(B22,'Total Quantities'!B26:C54,2,FALSE) -> 27 | D22: LF | E22: 100 | F22: ='Total Quantities'!F29 -> $0.00 | G22: $0.00
A23: 22 | B23: 24" White Solid Lines (Stop/Diag Lines) Thermoplastic-125 mil | C23: =VLOOKUP(B23,'Total Quantities'!B27:C55,2,FALSE) -> 31 | D23: LF | E23: 64 | F23: ='Total Quantities'!F30 -> $0.00 | G23: $0.00
A24: 26 | B24: Permanent Clear Pavement Markers Mono.-4"x4" | C24: =VLOOKUP(B24,'Total Quantities'!B30:C56,2,FALSE) ->  | D24: EA | E24: 14 | F24: ='Total Quantities'!F34 -> $0.00 | G24: $0.00
A25: 29 | B25: Permanent Vegetation | C25: =VLOOKUP(B25,'Total Quantities'!B40:C65,2,FALSE) ->  | D25: MSY | E25: 1.15 | F25: ='Total Quantities'!F37 -> $0.00 | G25: $0.00
F26: SUB-TOTAL | G26: =SUM(G11:G24) -> $0.00
A29: Joshua Circle | I29: Road Dimensions
A30: Start: | B30: Joshua Circle (start @Jericho Woods)
A31: Stop: | B31: Joshua Circle (end @Jericho Woods)
A32: Road Length: | B32: 0.16 mi.
A33: Original Width: 22 ft Widen Left: 0 ft Widen Right: 0 ft Final Width: 22 ft
A35: ITEM # | B35: DESCRIPTION | D35: UNIT | E35: QUANTITY | F35: UNIT PRICE | G35: TOTAL PRICE | I35: Total Length [ft] | J35: 6,750 | L35: =J35/5280 -> 1.28 | M35: [mi]
I36: Proposed Width [ft] | J36: 28
A37: 5 | B37: Borrow Excavation | C37: =VLOOKUP(B37,'Total Quantities'!B44:C67,2,FALSE) ->  | D37: CY | E37: 60 | F37: ='Total Quantities'!F13 -> $0.00 | G37: =F37*E37 -> $0.00
A38: 10 | B38: Full Depth HMA Patching 6" Uniform | C38: =VLOOKUP(B38,'Total Quantities'!B49:C75,2,FALSE) ->  | D38: SY | E38: 80 | F38: ='Total Quantities'!F18 -> $0.00 | G38: $0.00
A39: 11 | B39: Liquid Asphalt Binder PG64-22 | C39: =VLOOKUP(B39,'Total Quantities'!B49:C76,2,FALSE) ->  | D39: TON | E39: 13.00 | F39: ='Total Quantities'!F19 -> $0.00 | G39: $0.00
A40: 12 | B40: H/M Asph. Surf. Cr. Type D (150 lbs/sy) | C40: =VLOOKUP(B40,'Total Quantities'!B51:C78,2,FALSE) ->  | D40: TON | E40: 195.00 | F40: ='Total Quantities'!F20 -> $0.00 | G40: =F40*E40 -> $0.00 | H40: Rate | I40: 450
A41: 18 | B41: 24" White Solid Lines (Stop) Fast Dry Paint | C41: =VLOOKUP(B41,'Total Quantities'!B54:C82,2,FALSE) ->  | D41: LF | E41: 15 | F41: ='Total Quantities'!F26 -> $0.00 | G41: $0.00
A42: 22 | B42: 24" White Solid Lines (Stop/Diag Lines) Thermoplastic-125 mil | C42: =VLOOKUP(B42,'Total Quantities'!B56:C86,2,FALSE) ->  | D42: LF | E42: 15 | F42: ='Total Quantities'!F30 -> $0.00 | G42: $0.00
A43: 29 | B43: Permanent Vegetation | C43: =VLOOKUP(B43,'Total Quantities'!B64:C91,2,FALSE) ->  | D43: MSY | E43: 0.75 | F43: ='Total Quantities'!F37 -> $0.00 | G43: $0.00
F44: SUB-TOTAL | G44: =SUM(G37:G42) -> $0.00
F47: ROAD TOTAL = | G47: =+SUM(G44,G26) -> $0.00

Sheet Stone Marten
A1: Stone Marten Subdivision | I1: Road Dimensions
A3: Stone Marten Drive
A4: Start: | B4: Stone Marten Drive (end @ Mink Point Blvd)
A5: Stop: | B5: Stone Marten Drive (start @ Mink Point Blvd)
A6: Road Length: | B6: 0.23 mi.
A7: Original Width: 20 ft Widen Left: 0 ft Widen Right: 0 ft Final Width: 20 ft
A9: ITEM # | B9: DESCRIPTION | D9: UNIT | E9: QUANTITY | F9: UNIT PRICE | G9: TOTAL PRICE | I9: Proposed Width [ft] | J9: 28
I10: Pavement Area [sy] | J10: =(#REF!*J9)/9 -> 
A11: 1 | B11: Mobilization | C11: =A11 -> 1 | D11: LS | E11: 0.20 | F11: ='Total Quantities'!F9 -> $0.00 | G11: =E11*F11 -> $0.00
A12: 2 | B12: Bonds & Insurance | C12: =A12 -> 2 | D12: LS | E12: 0.20 | F12: ='Total Quantities'!F10 -> $0.00 | G12: =E12*F12 -> $0.00
A13: 3 | B13: Construction Stakes, Lines, & Grades | C13: 3 | D13: LS | E13: 0.20 | F13: ='Total Quantities'!F11 -> $0.00 | G13: $0.00
A14: 4 | B14: Traffic Control | C14: 4 | D14: LS | E14: 0.20 | F14: ='Total Quantities'!F12 -> $0.00 | G14: $0.00
A15: 5 | B15: Borrow Excavation | C15: =VLOOKUP(B15,'Total Quantities'!B11:C39,2,FALSE) -> 5 | D15: CY | E15: 80 | F15: ='Total Quantities'!F13 -> $0.00 | G15: =F15*E15 -> $0.00
A16: 10 | B16: Full Depth HMA Patching 6" Uniform | C16: =VLOOKUP(B16,'Total Quantities'!B17:C44,2,FALSE) -> 12 | D16: SY | E16: 75 | F16: ='Total Quantities'!F18 -> $0.00 | G16: =F16*E16 -> $0.00
A17: 11 | B17: Liquid Asphalt Binder PG64-22 | C17: =VLOOKUP(B17,'Total Quantities'!B17:C45,2,FALSE) -> 13 | D17: TON | E17: 15.00 | F17: ='Total Quantities'!F19 -> $0.00 | G17: $0.00 | H17: Rate | I17: 450
A18: 12 | B18: H/M Asph. Surf. Cr. Type D (150 lbs/sy) | C18: =VLOOKUP(B18,'Total Quantities'!B19:C47,2,FALSE) ->  | D18: TON | E18: 235.00 | F18: ='Total Quantities'!F20 -> $0.00 | G18: =F18*E18 -> $0.00
A19: 18 | B19: 24" White Solid Lines (Stop) Fast Dry Paint | C19: =VLOOKUP(B19,'Total Quantities'!B25:C51,2,FALSE) -> 24 | D19: LF | E19: 15 | F19: ='Total Quantities'!F26 -> $0.00 | G19: $0.00
A20: 22 | B20: 24" White Solid Lines (Stop/Diag Lines) Thermoplastic-125 mil | C20: =VLOOKUP(B20,'Total Quantities'!B27:C55,2,FALSE) -> 31 | D20: LF | E20: 15 | F20: ='Total Quantities'!F30 -> $0.00 | G20: $0.00
A21: 29 | B21: Permanent Vegetation | C21: =VLOOKUP(B21,'Total Quantities'!B37:C60,2,FALSE) ->  | D21: MSY | E21: 0.95 | F21: ='Total Quantities'!F37 -> $0.00 | G21: $0.00
F22: SUB-TOTAL | G22: =SUM(G11:G20) -> $0.00
A25: Stone Marten Circle | I25: Road Dimensions
A26: Start: | B26: Stone Marten Circle (start @ Stone Marten Drive)
A27: Stop: | B27: Stone Marten Circle (end @ Stone Marten Drive)
A28: Road Length: | B28: 0.04 mi.
A29: Original Width: 20 ft Widen Left: 0 ft Widen Right: 0 ft Final Width: 20 ft
A31: ITEM # | B31: DESCRIPTION | D31: UNIT | E31: QUANTITY | F31: UNIT PRICE | G31: TOTAL PRICE | I31: Total Length [ft] | J31: 6,750 | L31: =J31/5280 -> 1.28 | M31: [mi]
I32: Proposed Width [ft] | J32: 28
A33: 5 | B33: Borrow Excavation | C33: =VLOOKUP(B33,'Total Quantities'!B40:C61,2,FALSE) ->  | D33: CY | E33: 25 | F33: ='Total Quantities'!F13 -> $0.00 | G33: =F33*E33 -> $0.00
A34: 10 | B34: Full Depth HMA Patching 6" Uniform | C34: =VLOOKUP(B34,'Total Quantities'!B43:C69,2,FALSE) ->  | D34: SY | E34: 50 | F34: ='Total Quantities'!F18 -> $0.00 | G34: $0.00
A35: 11 | B35: Liquid Asphalt Binder PG64-22 | C35: =VLOOKUP(B35,'Total Quantities'!B43:C70,2,FALSE) ->  | D35: TON | E35: 4.00 | F35: ='Total Quantities'!F19 -> $0.00 | G35: $0.00
A36: 12 | B36: H/M Asph. Surf. Cr. Type D (150 lbs/sy) | C36: =VLOOKUP(B36,'Total Quantities'!B45:C72,2,FALSE) ->  | D36: TON | E36: 60.00 | F36: ='Total Quantities'!F20 -> $0.00 | G36: =F36*E36 -> $0.00 | H36: Rate | I36: 450
A37: 18 | B37: 24" White Solid Lines (Stop) Fast Dry Paint | C37: =VLOOKUP(B37,'Total Quantities'!B48:C76,2,FALSE) ->  | D37: LF | E37: 15 | F37: ='Total Quantities'!F26 -> $0.00 | G37: $0.00
A38: 22 | B38: 24" White Solid Lines (Stop/Diag Lines) Thermoplastic-125 mil | C38: =VLOOKUP(B38,'Total Quantities'!B50:C80,2,FALSE) ->  | D38: LF | E38: 15 | F38: ='Total Quantities'!F30 -> $0.00 | G38: $0.00
A39: 29 | B39: Permanent Vegetation | C39: =VLOOKUP(B39,'Total Quantities'!B58:C85,2,FALSE) ->  | D39: MSY | E39: 0.25 | F39: ='Total Quantities'!F37 -> $0.00 | G39: $0.00
F40: SUB-TOTAL | G40: =SUM(G33:G38) -> $0.00
A43: * Clip Grass at edge of pavement | F43: ROAD TOTAL = | G43: =+SUM(G40,G22) -> $0.00

Sheet Schein Loop
A1: Schein Loop | I1: Road Dimensions
A3: Start: | B3: Bay Pine Road
A4: Stop: | B4: Cul-de-sac
A5: Road Length: | B5: .55 mi
A6: Original Width: 20 ft Widen Left: 0 ft Widen Right: 0 ft Final Width: 20 ft
I9: Total Length [ft] | J9: 6,750 | L9: =J9/5280 -> 1.28 | M9: [mi]
A10: ITEM # | B10: DESCRIPTION | D10: UNIT | E10: QUANTITY | F10: UNIT PRICE | G10: TOTAL PRICE | I10: Proposed Width [ft] | J10: 28
I11: Pavement Area [sy] | J11: =(J9*J10)/9 -> 21000
A12: 1 | B12: Mobilization | C12: =A12 -> 1 | D12: LS | E12: 0.20 | F12: ='Total Quantities'!F9 -> $0.00 | G12: =E12*F12 -> $0.00
A13: 2 | B13: Bonds & Insurance | C13: =A13 -> 2 | D13: LS | E13: 0.20 | F13: ='Total Quantities'!F10 -> $0.00 | G13: =E13*F13 -> $0.00
A14: 3 | B14: Construction Stakes, Lines, & Grades | C14: 3 | D14: LS | E14: 0.20 | F14: ='Total Quantities'!F11 -> $0.00 | G14: $0.00
A15: 4 | B15: Traffic Control | C15: 4 | D15: LS | E15: 0.20 | F15: ='Total Quantities'!F12 -> $0.00 | G15: $0.00
A16: 5 | B16: Borrow Excavation | C16: =VLOOKUP(B16,'[1]Total Quantities'!B11:C33,2,FALSE) -> 5 | D16: CY | E16: 275 | F16: ='Total Quantities'!F13 -> $0.00 | G16: =F16*E16 -> $0.00 | I16: Intersections [sy] | J16: 220
A17: 6 | B17: Maintenance Stone | C17: =VLOOKUP(B17,'[1]Total Quantities'!B14:C39,2,FALSE) -> 10 | D17: TON | E17: 20 | F17: ='Total Quantities'!F14 -> $0.00 | G17: $0.00
A18: 9 | B18: Mill Existing Asphalt Pavement (variable depth) | C18: =VLOOKUP(B18,'[1]Total Quantities'!B14:C40,2,FALSE) -> 11 | D18: SY | E18: 150 | F18: ='Total Quantities'!F17 -> $0.00 | G18: $0.00
A19: 10 | B19: Full Depth HMA Patching 6" Uniform | C19: =VLOOKUP(B19,'[1]Total Quantities'!B14:C41,2,FALSE) -> 12 | D19: SY | E19: 750 | F19: ='Total Quantities'!F18 -> $0.00 | G19: $0.00
A20: 11 | B20: Liquid Asphalt Binder PG64-22 | C20: =VLOOKUP(B20,'[1]Total Quantities'!B15:C42,2,FALSE) -> 13 | D20: TON | E20: 60 | F20: ='Total Quantities'!F19 -> $0.00 | G20: $0.00
A21: 13 | B21: H/M Asph. Surf. Cr. Type B (200 lbs/sy) | C21: =VLOOKUP(B21,'[1]Total Quantities'!B18:C45,2,FALSE) ->  | D21: TON | E21: 890 | F21: ='Total Quantities'!F21 -> $0.00 | G21: $0.00 | H21: Rate | I21: 200
A22: 14 | B22: H/M Asph. Surf. Cr. Type E (Varies) | C22: =VLOOKUP(B22,'[1]Total Quantities'!B17:C44,2,FALSE) -> 17 | D22: TON | E22: 200 | F22: ='Total Quantities'!F22 -> $0.00 | G22: =F22*E22 -> $0.00 | H22: Rate | I22: 80
A23: 15 | B23: Permanent Construction Signs (Ground Mounted) | C23: =VLOOKUP(B23,'[1]Total Quantities'!B18:C46,2,FALSE) -> 20 | D23: SF | E23: 152 | F23: ='Total Quantities'!F23 -> $0.00 | G23: $0.00
A24: 17 | B24: 4" White Solid Lines (Pavement Edge Lines) Fast Dry Paint | C24: =VLOOKUP(B24,'[1]Total Quantities'!B19:C47,2,FALSE) -> 21 | D24: LF | E24: 6350 | F24: ='Total Quantities'!F25 -> $0.00 | G24: $0.00
A25: 18 | B25: 24" White Solid Lines (Stop) Fast Dry Paint | C25: =VLOOKUP(B25,'[1]Total Quantities'!B20:C48,2,FALSE) -> 24 | D25: LF | E25: 20 | F25: ='Total Quantities'!F26 -> $0.00 | G25: $0.00
A26: 19 | B26: 4" Yellow Solid Line (No Passing Zone) Fast Dry Paint | C26: =VLOOKUP(B26,'[1]Total Quantities'!B21:C49,2,FALSE) -> 25 | D26: LF | E26: 6350 | F26: ='Total Quantities'!F27 -> $0.00 | G26: $0.00
A27: 21 | B27: 4" White Solid Lines (Pavement Edge Lines) Thermoplastic-90 mil | C27: =VLOOKUP(B27,'[1]Total Quantities'!B22:C51,2,FALSE) -> 27 | D27: LF | E27: 6350 | F27: ='Total Quantities'!F29 -> $0.00 | G27: $0.00
A28: 22 | B28: 24" White Solid Lines (Stop/Diag Lines) Thermoplastic-125 mil | C28: =VLOOKUP(B28,'[1]Total Quantities'!B23:C52,2,FALSE) -> 31 | D28: LF | E28: 20 | F28: ='Total Quantities'!F30 -> $0.00 | G28: $0.00
A29: 23 | B29: 4" Yellow Solid Line (No Passing Zone) Thermoplastic-90 mil | C29: =VLOOKUP(B29,'[1]Total Quantities'!B25:C53,2,FALSE) -> 32 | D29: LF | E29: 5850 | F29: ='Total Quantities'!F31 -> $0.00 | G29: $0.00
A30: 25 | B30: Permanent Yellow Pavement Markers Bi-Dir.-4"x4" | C30: =VLOOKUP(B30,'[1]Total Quantities'!B28:C56,2,FALSE) ->  | D30: EA | E30: 38 | F30: ='Total Quantities'!F33 -> $0.00 | G30: $0.00
A31: 27 | B31: 36" RCP (Remove & Replace) | D31: LF | E31: 48 | F31: ='Total Quantities'!F35 -> $0.00 | G31: $0.00
A32: 28 | B32: 42" RCP (Remove & Replace) | D32: LF | E32: 64 | F32: ='Total Quantities'!F36 -> $0.00 | G32: $0.00
A33: 29 | B33: Permanent Vegetation | C33: =VLOOKUP(B33,'[1]Total Quantities'!B29:C57,2,FALSE) -> 42 | D33: MSY | E33: 3.5 | F33: ='Total Quantities'!F37 -> $0.00 | G33: $0.00
F34: ROAD TOTAL | G34: =SUM(G12:G33) -> $0.00
